fUSD/lending_fUSD_20260519
["ID","MTS","AMOUNT","RATE_DAILY","PERIOD"]
[422616117,1779160245000,-500.0,0.00024397,2]
[422616123,1779160245000,-2991.49051684,0.00024605,2]
[422616119,1779160245000,-166.0,0.00024397,2]
[422616121,1779160245000,-1107.19510695,0.00024512,2]
[422616120,1779160245000,-5109.0,0.00024397,2]
[422616122,1779160245000,-200.0,0.00024605,2]
[422616115,1779160245000,-1371.0,0.00024397,2]
[422616124,1779160245000,-151.0,0.00024658,2]
[422616125,1779160245000,-151.0,0.00024658,2]
[422616126,1779160245000,-151.0,0.00024658,2]
[422616127,1779160245000,-179.56,0.00024658,2]
[422616111,1779160245000,-1224.0,0.00024278,2]
[422616160,1779160245000,-500.0,0.00024999,2]
[422616150,1779160245000,-5543.0,0.000249,2]
[422616166,1779160245000,-794274.01596214,0.00025,2]
[422616201,1779160245000,-1416.55,0.00026099,7]
[422616197,1779160245000,-4583.43430776,0.00026,2]
[422616202,1779160245000,-652.1,0.00026296,2]
[422616198,1779160245000,-219.37052768,0.00026,2]
[422616196,1779160245000,-608.90335722,0.0002599,2]
[422616200,1779160245000,-550.0,0.00026,2]
[422616203,1779160245000,-259.9420545,0.000263,2]
[422616206,1779160245000,-1416.55,0.00026388,2]
[422616210,1779160245000,-3696.06,0.000264,2]
[422616207,1779160245000,-458.3397135,0.00026397,2]
[422616205,1779160245000,-3276.97363741,0.00026384,2]
[422616209,1779160245000,-5544.1,0.000264,2]
[422616204,1779160245000,-829.86905816,0.000263,2]
[422616194,1779160245000,-32045.70781256,0.0002589,5]
[422616214,1779160245000,-150.0,0.00026484,2]
[422616211,1779160245000,-7470.85,0.000264,2]
[422616212,1779160245000,-40459.42,0.000264,2]
[422616213,1779160245000,-5530.0,0.000264,5]
[422616215,1779160245000,-5893.2598718,0.0002651,2]
[422616216,1779160245000,-163.0,0.00026619,3]
[422616219,1779160245000,-3633.0,0.00026848,2]
[422616221,1779160245000,-2314.0,0.00026939,3]
[422616222,1779160245000,-1416.55,0.00026964,2]
[422616223,1779160245000,-250.0,0.00027,2]
[422616217,1779160245000,-1416.55,0.00026676,7]
[422616218,1779160245000,-500.0,0.00026794,2]
[422616225,1779160245000,-530.0,0.00027,2]
[422616163,1779160245000,-500.0,0.00024999,2]
[422616208,1779160245000,-27861.85259256,0.000264,2]
[422616199,1779160245000,-400.29843382,0.00026,20]
[422616224,1779160245000,-1049.35722162,0.00027,2]
[422616195,1779160245000,-347.38771859,0.00025966,2]
[422616193,1779160245000,-1416.55,0.00025811,7]
[422616161,1779160245000,-500.0,0.00024999,2]
[422616167,1779160245000,-553.23357306,0.00025,2]
[422616169,1779160245000,-50051.11203571,0.00025,2]
[422616168,1779160245000,-3996.51,0.00025,2]
[422616170,1779160245000,-152.96914,0.00025,2]
[422616171,1779160245000,-206.797155,0.00025,2]
[422616176,1779160245000,-151.0,0.00025,2]
[422616174,1779160245000,-196.683616,0.00025,2]
[422616220,1779160245000,-1567.56,0.0002688,7]
[422616173,1779160245000,-151.0,0.00025,2]
[422616175,1779160245000,-151.0,0.00025,2]
[422616172,1779160245000,-151.0,0.00025,2]
[422616177,1779160245000,-474.6569148,0.00025,2]
[422616162,1779160245000,-559.3967401,0.00024999,2]
[422616179,1779160245000,-165.96,0.00025234,2]
[422616178,1779160245000,-200.0,0.00025153,2]
[422616190,1779160245000,-437.4,0.00025767,2]
[422616187,1779160245000,-1268.88,0.000256,7]
[422616188,1779160245000,-626.0,0.000257,7]
[422616184,1779160245000,-5811.57,0.00025543,7]
[422616185,1779160245000,-1567.56,0.00025543,7]
[422616192,1779160245000,-450.0,0.00025767,2]
[422616183,1779160245000,-1416.55,0.00025523,2]
[422616189,1779160245000,-5530.0,0.000257,3]
[422616181,1779160245000,-165.58,0.00025234,2]
[422616182,1779160245000,-458.3397135,0.00025397,2]
[422616180,1779160245000,-1416.55,0.00025234,2]
[422616186,1779160245000,-811.25,0.00025571,2]
[422616261,1779160246000,-151.0,0.00027397,2]
[422616267,1779160246000,-151.0,0.00027397,2]
[422616262,1779160246000,-163.374256,0.00027397,2]
[422616266,1779160246000,-151.0,0.00027397,2]
[422616260,1779160246000,-151.0,0.00027397,2]
[422616268,1779160246000,-151.0,0.00027397,2]
[422616258,1779160246000,-498.22,0.00027397,2]
[422616255,1779160246000,-500.0,0.00027397,2]
[422616263,1779160246000,-300.0,0.00027397,2]
[422616256,1779160246000,-150.0,0.00027397,2]
[422616265,1779160246000,-151.0,0.00027397,2]
[422616257,1779160246000,-1500.0,0.00027397,2]
[422616281,1779160246000,-151.0,0.00027397,2]
[422616259,1779160246000,-151.0,0.00027397,2]
[422616269,1779160246000,-234.357101,0.00027397,2]
[422616271,1779160246000,-151.0,0.00027397,2]
[422616282,1779160246000,-151.0,0.00027397,2]
[422616270,1779160246000,-526.82,0.00027397,2]
[422616275,1779160246000,-151.0,0.00027397,2]
[422616273,1779160246000,-151.0,0.00027397,2]
[422616272,1779160246000,-151.0,0.00027397,2]
[422616274,1779160246000,-151.0,0.00027397,2]
[422616278,1779160246000,-151.0,0.00027397,2]
[422616253,1779160246000,-811.23502315,0.00027397,2]
[422616276,1779160246000,-151.0,0.00027397,2]
[422616264,1779160246000,-151.0,0.00027397,2]
[422616254,1779160246000,-305.559809,0.00027397,7]
[422616238,1779160246000,-208.0,0.00027123,2]
[422616246,1779160246000,-3544.0,0.00027278,2]
[422616279,1779160246000,-151.0,0.00027397,2]
[422616226,1779160246000,-2000.0,0.00027,2]
[422616227,1779160246000,-150.0,0.00027,7]
[422616228,1779160246000,-152.0,0.00027,7]
[422616233,1779160246000,-2575.529742,0.0002701,2]
[422616232,1779160246000,-172.0,0.00027,7]
[422616235,1779160246000,-376.0,0.00027123,2]
[422616230,1779160246000,-405.0,0.00027,7]
[422616229,1779160246000,-164.0,0.00027,7]
[422616231,1779160246000,-241.0,0.00027,7]
[422616234,1779160246000,-150.0,0.00027123,20]
[422616239,1779160246000,-331.0,0.00027123,2]
[422616236,1779160246000,-3332.0,0.00027123,2]
[422616237,1779160246000,-334.16038289,0.00027123,2]
[422616252,1779160246000,-3534.50346403,0.00027397,2]
[422616247,1779160246000,-1224.0,0.00027278,2]
[422616244,1779160246000,-1416.55,0.00027253,2]
[422616241,1779160246000,-291.0,0.00027123,2]
[422616242,1779160246000,-236.0,0.00027123,2]
[422616243,1779160246000,-500.0,0.00027137,2]
[422616249,1779160246000,-4170.70656321,0.0002739,2]
[422616248,1779160246000,-1268.88,0.000273,7]
[422616240,1779160246000,-269.0,0.00027123,2]
[422616251,1779160246000,-3534.50346403,0.00027397,2]
[422616245,1779160246000,-2314.0,0.00027259,3]
[422616250,1779160246000,-8239.37678057,0.0002739,2]
[422616280,1779160246000,-151.0,0.00027397,2]
[422616277,1779160246000,-151.00000004,0.00027397,2]
[422616283,1779160246000,-151.0,0.00027397,2]
[422616316,1779160246000,-5950.58,0.000274,14]
[422616311,1779160246000,-20996.79,0.00027397,10]
[422616314,1779160246000,-158.58,0.000274,7]
[422616320,1779160246000,-5196.41,0.000274,2]
[422616318,1779160246000,-5196.41,0.000274,2]
[422616332,1779160246000,-1500.0,0.00027797,15]
[422616333,1779160246000,-1500.0,0.00027797,15]
[422616322,1779160246000,-5196.41,0.000274,2]
[422616321,1779160246000,-5196.41,0.000274,2]
[422616323,1779160246000,-5196.41,0.000274,2]
[422616327,1779160246000,-1505.0,0.00027651,3]
[422616331,1779160246000,-1500.0,0.00027797,15]
[422616324,1779160246000,-1416.55,0.00027541,7]
[422616326,1779160246000,-1587.0,0.00027579,3]
[422616330,1779160246000,-1500.0,0.00027797,15]
[422616329,1779160246000,-1500.0,0.00027797,15]
[422616334,1779160246000,-1500.0,0.00027797,15]
[422616336,1779160246000,-1500.0,0.00027797,15]
[422616338,1779160246000,-1500.0,0.00027797,15]
[422616339,1779160246000,-1734.927438,0.00027797,15]
[422616337,1779160246000,-1500.0,0.00027797,15]
[422616340,1779160246000,-500.0,0.000278,7]
[422616341,1779160246000,-1416.55,0.0002783,30]
[422616342,1779160246000,-500.0,0.00027842,2]
[422616335,1779160246000,-1500.0,0.00027797,15]
[422616315,1779160246000,-160.62,0.000274,7]
[422616312,1779160246000,-40039.48,0.00027397,10]
[422616328,1779160246000,-405.0,0.00027671,14]
[422616309,1779160246000,-221.758984,0.00027397,2]
[422616313,1779160246000,-305.559809,0.00027397,7]
[422616285,1779160246000,-151.0,0.00027397,2]
[422616286,1779160246000,-151.0,0.00027397,2]
[422616288,1779160246000,-151.0,0.00027397,2]
[422616284,1779160246000,-151.0,0.00027397,2]
[422616287,1779160246000,-151.0,0.00027397,2]
[422616289,1779160246000,-189.45061,0.00027397,2]
[422616290,1779160246000,-221.758982,0.00027397,2]
[422616292,1779160246000,-221.758982,0.00027397,2]
[422616293,1779160246000,-221.758982,0.00027397,2]
[422616295,1779160246000,-221.758982,0.00027397,2]
[422616305,1779160246000,-221.758982,0.00027397,2]
[422616306,1779160246000,-221.758982,0.00027397,2]
[422616291,1779160246000,-221.758982,0.00027397,2]
[422616297,1779160246000,-221.758982,0.00027397,2]
[422616308,1779160246000,-221.758982,0.00027397,2]
[422616299,1779160246000,-221.758982,0.00027397,2]
[422616300,1779160246000,-221.758982,0.00027397,2]
[422616302,1779160246000,-221.758982,0.00027397,2]
[422616303,1779160246000,-221.758982,0.00027397,2]
[422616307,1779160246000,-221.758982,0.00027397,2]
[422616301,1779160246000,-221.758982,0.00027397,2]
[422616298,1779160246000,-221.758982,0.00027397,2]
[422616294,1779160246000,-221.758982,0.00027397,2]
[422616296,1779160246000,-221.758982,0.00027397,2]
[422616304,1779160246000,-221.758982,0.00027397,2]
[422616383,1779160247000,-151.0,0.00028636,7]
[422616384,1779160247000,-153.445202,0.00028636,7]
[422616386,1779160247000,-944.37,0.00028661,7]
[422616389,1779160247000,-218.26,0.00028661,7]
[422616380,1779160247000,-157.7,0.0002863,2]
[422616379,1779160247000,-264.15,0.0002863,2]
[422616374,1779160247000,-626.0,0.000286,7]
[422616372,1779160247000,-3326.9621657,0.00028545,2]
[422616378,1779160247000,-220.43,0.0002863,2]
[422616375,1779160247000,-163.0,0.00028611,3]
[422616385,1779160247000,-151.0,0.00028636,7]
[422616377,1779160247000,-158.06,0.0002863,2]
[422616392,1779160247000,-1587.0,0.00028684,3]
[422616398,1779160247000,-158.06,0.00028722,30]
[422616391,1779160247000,-157.7,0.00028676,7]
[422616388,1779160247000,-264.15,0.00028661,7]
[422616382,1779160247000,-111979.1672407,0.00028635,2]
[422616390,1779160247000,-158.06,0.00028676,7]
[422616394,1779160247000,-220.43,0.00028693,30]
[422616396,1779160247000,-218.26,0.00028693,30]
[422616400,1779160247000,-944.37,0.00028725,2]
[422616397,1779160247000,-1416.55,0.00028695,30]
[422616403,1779160247000,-218.26,0.00028725,2]
[422616402,1779160247000,-264.15,0.00028725,2]
[422616395,1779160247000,-264.15,0.00028693,30]
[422616404,1779160247000,-152.0,0.00028728,30]
[422616376,1779160247000,-944.37,0.0002863,2]
[422616387,1779160247000,-220.43,0.00028661,7]
[422616373,1779160247000,-500.0,0.00028547,3]
[422616344,1779160247000,-5811.57,0.00027994,7]
[422616381,1779160247000,-218.26,0.0002863,2]
[422616343,1779160247000,-1772.77291782,0.00027991,2]
[422616345,1779160247000,-600.0,0.00028,2]
[422616393,1779160247000,-944.37,0.00028693,30]
[422616346,1779160247000,-189.59,0.00028,2]
[422616347,1779160247000,-1416.55,0.00028118,2]
[422616357,1779160247000,-40459.42,0.000283,2]
[422616350,1779160247000,-652.1,0.00028267,2]
[422616349,1779160247000,-1567.56,0.00028216,7]
[422616348,1779160247000,-721.32467522,0.0002817,2]
[422616353,1779160247000,-5544.1,0.000283,2]
[422616352,1779160247000,-1587.0,0.00028291,3]
[422616356,1779160247000,-257.45,0.000283,2]
[422616351,1779160247000,-2314.0,0.00028291,3]
[422616370,1779160247000,-160852.1386929,0.00028545,2]
[422616355,1779160247000,-7470.85,0.000283,2]
[422616359,1779160247000,-151.0,0.00028361,7]
[422616369,1779160247000,-1636.864331,0.00028545,2]
[422616362,1779160247000,-10000.0,0.00028431,2]
[422616358,1779160247000,-150.0,0.00028311,2]
[422616360,1779160247000,-338.09131798,0.00028362,2]
[422616361,1779160247000,-1416.55,0.00028406,7]
[422616363,1779160247000,-152.82493512,0.00028493,21]
[422616364,1779160247000,-4822.71674634,0.00028493,21]
[422616366,1779160247000,-151.0,0.000285,7]
[422616367,1779160247000,-20793.05938883,0.00028514,2]
[422616368,1779160247000,-5630.394142,0.00028545,2]
[422616365,1779160247000,-5950.58,0.000285,14]
[422616371,1779160247000,-270521.4495425,0.00028545,2]
[422616354,1779160247000,-3696.06,0.000283,2]
[422616401,1779160247000,-220.43,0.00028725,2]
[422616464,1779160247000,-157.7,0.00029047,2]
[422616405,1779160247000,-944.37,0.00028756,7]
[422616437,1779160247000,-157.7,0.00028908,2]
[422616436,1779160247000,-158.06,0.00028908,2]
[422616440,1779160247000,-264.15,0.00028915,2]
[422616442,1779160247000,-944.37,0.00028947,7]
[422616441,1779160247000,-218.26,0.00028915,2]
[422616439,1779160247000,-220.43,0.00028915,2]
[422616444,1779160247000,-264.15,0.00028947,7]
[422616447,1779160247000,-157.7,0.00028954,7]
[422616448,1779160247000,-944.37,0.00028979,30]
[422616446,1779160247000,-158.06,0.00028954,7]
[422616451,1779160247000,-218.26,0.00028979,30]
[422616455,1779160247000,-944.37,0.0002901,2]
[422616449,1779160247000,-220.43,0.00028979,30]
[422616445,1779160247000,-218.26,0.00028947,7]
[422616450,1779160247000,-264.15,0.00028979,30]
[422616456,1779160247000,-220.43,0.0002901,2]
[422616457,1779160247000,-264.15,0.0002901,2]
[422616453,1779160247000,-158.06,0.00029001,30]
[422616452,1779160247000,-1416.55,0.00028983,2]
[422616454,1779160247000,-157.7,0.00029001,30]
[422616458,1779160247000,-218.26,0.0002901,2]
[422616459,1779160247000,-944.37,0.00029042,7]
[422616460,1779160247000,-220.43,0.00029042,7]
[422616461,1779160247000,-264.15,0.00029042,7]
[422616462,1779160247000,-218.26,0.00029042,7]
[422616463,1779160247000,-158.06,0.00029047,2]
[422616399,1779160247000,-157.7,0.00028722,30]
[422616438,1779160247000,-944.37,0.00028915,2]
[422616434,1779160247000,-218.26,0.00028883,30]
[422616465,1779160247000,-265.89,0.00029074,30]
[422616435,1779160247000,-169.25,0.00028906,3]
[422616432,1779160247000,-220.43,0.00028883,30]
[422616406,1779160247000,-220.43,0.00028756,7]
[422616410,1779160247000,-368.52553806,0.00028767,2]
[422616413,1779160247000,-158.06,0.00028769,2]
[422616412,1779160247000,-173.0,0.00028767,14]
[422616411,1779160247000,-405.0,0.00028767,14]
[422616409,1779160247000,-152.0,0.00028765,30]
[422616407,1779160247000,-264.15,0.00028756,7]
[422616414,1779160247000,-157.7,0.00028769,2]
[422616415,1779160247000,-944.37,0.00028788,30]
[422616416,1779160247000,-220.43,0.00028788,30]
[422616417,1779160247000,-264.15,0.00028788,30]
[422616418,1779160247000,-218.26,0.00028788,30]
[422616421,1779160247000,-944.37,0.0002882,2]
[422616408,1779160247000,-218.26,0.00028756,7]
[422616423,1779160247000,-264.15,0.0002882,2]
[422616420,1779160247000,-157.7,0.00028815,7]
[422616433,1779160247000,-264.15,0.00028883,30]
[422616431,1779160247000,-944.37,0.00028883,30]
[422616428,1779160247000,-218.26,0.00028852,7]
[422616430,1779160247000,-157.7,0.00028861,30]
[422616426,1779160247000,-220.43,0.00028852,7]
[422616443,1779160247000,-220.43,0.00028947,7]
[422616429,1779160247000,-158.06,0.00028861,30]
[422616427,1779160247000,-264.15,0.00028852,7]
[422616425,1779160247000,-944.37,0.00028852,7]
[422616422,1779160247000,-220.43,0.0002882,2]
[422616424,1779160247000,-218.26,0.0002882,2]
[422616419,1779160247000,-158.06,0.00028815,7]
[422616503,1779160248000,-264.27,0.00029232,7]
[422616509,1779160248000,-151.75796027,0.00029259,2]
[422616500,1779160248000,-265.95,0.00029232,7]
[422616504,1779160248000,-944.4,0.00029232,7]
[422616507,1779160248000,-500.0,0.00029252,4]
[422616494,1779160248000,-265.89,0.00029201,2]
[422616499,1779160248000,-150.0,0.00029224,2]
[422616501,1779160248000,-944.47,0.00029232,7]
[422616505,1779160248000,-157.76,0.00029232,7]
[422616512,1779160248000,-5950.58,0.000294,14]
[422616498,1779160248000,-218.26,0.00029201,2]
[422616502,1779160248000,-158.13,0.00029232,7]
[422616520,1779160248000,-1567.56,0.00029553,7]
[422616515,1779160248000,-980.88931176,0.000294,5]
[422616511,1779160248000,-1416.55,0.00029271,7]
[422616510,1779160248000,-159.18212756,0.00029261,7]
[422616519,1779160248000,-150.0,0.00029534,2]
[422616513,1779160248000,-1056.32679093,0.000294,5]
[422616514,1779160248000,-1139.75385192,0.000294,5]
[422616516,1779160248000,-587.45,0.00029498,30]
[422616517,1779160248000,-1579.3541,0.000295,2]
[422616518,1779160248000,-531.81923713,0.00029533,2]
[422616523,1779160248000,-2130.27391174,0.00029648,7]
[422616521,1779160248000,-174.7,0.0002956,30]
[422616522,1779160248000,-1416.55,0.0002956,30]
[422616497,1779160248000,-264.15,0.00029201,2]
[422616526,1779160248000,-500.0,0.00029956,5]
[422616508,1779160248000,-259.55327194,0.00029253,7]
[422616496,1779160248000,-220.43,0.00029201,2]
[422616478,1779160248000,-265.89,0.00029137,7]
[422616495,1779160248000,-944.37,0.00029201,2]
[422616528,1779160248000,-165.0,0.0002997,3]
[422616470,1779160248000,-158.06,0.00029093,7]
[422616468,1779160248000,-264.15,0.00029074,30]
[422616469,1779160248000,-218.26,0.00029074,30]
[422616466,1779160248000,-944.37,0.00029074,30]
[422616467,1779160248000,-220.43,0.00029074,30]
[422616472,1779160248000,-1268.88,0.000291,7]
[422616482,1779160248000,-218.26,0.00029137,7]
[422616473,1779160248000,-265.89,0.00029105,2]
[422616471,1779160248000,-157.7,0.00029093,7]
[422616477,1779160248000,-218.26,0.00029105,2]
[422616476,1779160248000,-264.15,0.00029105,2]
[422616475,1779160248000,-220.43,0.00029105,2]
[422616506,1779160248000,-218.28,0.00029232,7]
[422616481,1779160248000,-264.15,0.00029137,7]
[422616479,1779160248000,-944.37,0.00029137,7]
[422616480,1779160248000,-220.43,0.00029137,7]
[422616484,1779160248000,-157.7,0.0002914,30]
[422616483,1779160248000,-158.06,0.0002914,30]
[422616485,1779160248000,-265.89,0.00029169,30]
[422616486,1779160248000,-944.37,0.00029169,30]
[422616487,1779160248000,-220.43,0.00029169,30]
[422616492,1779160248000,-158.58,0.000292,7]
[422616491,1779160248000,-157.7,0.00029186,2]
[422616488,1779160248000,-264.15,0.00029169,30]
[422616490,1779160248000,-158.06,0.00029186,2]
[422616489,1779160248000,-218.26,0.00029169,30]
[422616493,1779160248000,-160.62,0.000292,7]
[422616474,1779160248000,-944.37,0.00029105,2]
[422616527,1779160248000,-400.0,0.0002997,2]
[422616524,1779160248000,-1416.55,0.00029848,2]
[422616525,1779160248000,-3633.0,0.00029848,2]
[422616572,1779160248000,-300.0,0.00030131,10]
[422616569,1779160248000,-50043.06040198,0.0003013,2]
[422616563,1779160248000,-300.0,0.00030129,10]
[422616564,1779160248000,-670.98749453,0.00030129,10]
[422616571,1779160248000,-398.64139905,0.0003013,2]
[422616567,1779160248000,-204.93276225,0.0003013,2]
[422616570,1779160248000,-151.0,0.0003013,7]
[422616568,1779160248000,-3206691.47812063,0.0003013,7]
[422616561,1779160248000,-151.0,0.00030127,7]
[422616566,1779160248000,-644.19267673,0.0003013,2]
[422616565,1779160248000,-13440.91736304,0.0003013,2]
[422616573,1779160248000,-537.0,0.00030132,30]
[422616577,1779160248000,-156.0,0.00030133,30]
[422616562,1779160248000,-300.0,0.00030129,10]
[422616574,1779160248000,-158.0,0.00030132,30]
[422616576,1779160248000,-412.0,0.00030132,30]
[422616579,1779160248000,-159.0,0.00030133,30]
[422616581,1779160248000,-157.0,0.00030133,30]
[422616584,1779160248000,-261.73,0.00030136,8]
[422616582,1779160248000,-150.0,0.00030135,30]
[422616578,1779160248000,-151.0,0.00030133,30]
[422616580,1779160248000,-536.0,0.00030133,30]
[422616583,1779160248000,-261.74,0.00030136,8]
[422616586,1779160248000,-200.91034819,0.00030136,2]
[422616585,1779160248000,-200.0,0.00030136,2]
[422616587,1779160248000,-498.22,0.00030137,2]
[422616588,1779160248000,-200.0,0.00030137,2]
[422616533,1779160248000,-12834.66639235,0.0003,10]
[422616575,1779160248000,-160.0,0.00030132,30]
[422616560,1779160248000,-346.0,0.00030124,30]
[422616589,1779160248000,-239.5,0.00030137,2]
[422616558,1779160248000,-165.0,0.00030123,30]
[422616532,1779160248000,-87877.0,0.0003,2]
[422616529,1779160248000,-10482.55124479,0.0003,5]
[422616530,1779160248000,-332.24708307,0.0003,5]
[422616531,1779160248000,-20179.19400824,0.0003,2]
[422616590,1779160248000,-192.54772773,0.00030137,120]
[422616534,1779160248000,-1121.10949705,0.0003,2]
[422616536,1779160248000,-1000.0,0.0003,2]
[422616546,1779160248000,-200.0,0.0003,2]
[422616548,1779160248000,-1500.0,0.0003,2]
[422616547,1779160248000,-200.0,0.0003,2]
[422616537,1779160248000,-165.54848302,0.0003,2]
[422616538,1779160248000,-716.85564661,0.0003,7]
[422616540,1779160248000,-298.85998383,0.0003,2]
[422616541,1779160248000,-7577.3970043,0.0003,2]
[422616535,1779160248000,-1845.92571603,0.0003,2]
[422616542,1779160248000,-4620.0,0.0003,30]
[422616553,1779160248000,-3391.23591353,0.000301,2]
[422616539,1779160248000,-716.85564661,0.0003,7]
[422616555,1779160248000,-3391.23591351,0.000301,2]
[422616556,1779160248000,-213.8556438,0.000301,2]
[422616552,1779160248000,-2314.0,0.0003004,3]
[422616554,1779160248000,-3391.23591351,0.000301,2]
[422616557,1779160248000,-162.0,0.00030123,30]
[422616550,1779160248000,-164.0,0.0003002,30]
[422616559,1779160248000,-154.0,0.00030123,30]
[422616549,1779160248000,-200.0,0.0003,2]
[422616544,1779160248000,-200.0,0.0003,2]
[422616543,1779160248000,-650.0,0.0003,2]
[422616545,1779160248000,-200.0,0.0003,2]
[422616551,1779160248000,-162.0,0.0003002,30]
[422616632,1779160249000,-349.85672774,0.00031,5]
[422616637,1779160249000,-200.0,0.00031096,2]
[422616635,1779160249000,-200.0,0.0003105,2]
[422616630,1779160249000,-150.0,0.0003092,30]
[422616629,1779160249000,-1268.88,0.000309,7]
[422616622,1779160249000,-162.5161166,0.00030623,7]
[422616627,1779160249000,-433.95102717,0.0003084,2]
[422616625,1779160249000,-171.05922179,0.000307,30]
[422616623,1779160249000,-500.0,0.00030661,5]
[422616631,1779160249000,-1587.0,0.0003093,3]
[422616628,1779160249000,-1567.56,0.0003089,7]
[422616633,1779160249000,-1947.53905294,0.00031,2]
[422616645,1779160249000,-160.0,0.00031132,30]
[422616648,1779160249000,-151.0,0.00031133,30]
[422616636,1779160249000,-395.03,0.00031096,2]
[422616638,1779160249000,-158.58,0.000311,7]
[422616639,1779160249000,-162.0,0.00031123,30]
[422616642,1779160249000,-346.0,0.00031124,30]
[422616640,1779160249000,-165.0,0.00031123,30]
[422616643,1779160249000,-537.0,0.00031132,30]
[422616641,1779160249000,-154.0,0.00031123,30]
[422616644,1779160249000,-158.0,0.00031132,30]
[422616647,1779160249000,-156.0,0.00031133,30]
[422616659,1779160249000,-5037.79875775,0.00031401,2]
[422616657,1779160249000,-200.0,0.00031361,2]
[422616658,1779160249000,-500.0,0.00031366,6]
[422616624,1779160249000,-163.0,0.0003068,3]
[422616634,1779160249000,-150.0,0.00031011,2]
[422616626,1779160249000,-200.0,0.00030743,2]
[422616606,1779160249000,-652.1,0.00030239,2]
[422616617,1779160249000,-303.51592054,0.00030621,2]
[422616646,1779160249000,-412.0,0.00031132,30]
[422616596,1779160249000,-150.0,0.00030137,2]
[422616594,1779160249000,-382.43,0.00030137,2]
[422616595,1779160249000,-150.0,0.00030137,30]
[422616593,1779160249000,-382.44,0.00030137,2]
[422616591,1779160249000,-255.0,0.00030137,120]
[422616592,1779160249000,-409.17,0.00030137,2]
[422616598,1779160249000,-200.0,0.00030137,2]
[422616599,1779160249000,-200.0,0.00030137,2]
[422616600,1779160249000,-2985.33,0.000302,2]
[422616607,1779160249000,-347.38771859,0.00030255,2]
[422616608,1779160249000,-3544.0,0.00030278,2]
[422616602,1779160249000,-5950.58,0.000302,14]
[422616618,1779160249000,-178.57856278,0.00030623,2]
[422616604,1779160249000,-405.0,0.00030205,14]
[422616603,1779160249000,-402.14,0.000302,2]
[422616605,1779160249000,-150.0,0.00030205,2]
[422616620,1779160249000,-192.67820274,0.00030623,7]
[422616610,1779160249000,-2314.0,0.0003036,3]
[422616621,1779160249000,-318.36425511,0.00030623,7]
[422616609,1779160249000,-1212.124,0.00030278,2]
[422616612,1779160249000,-200.0,0.00030438,2]
[422616613,1779160249000,-200.0,0.00030438,2]
[422616615,1779160249000,-5811.57,0.00030444,7]
[422616619,1779160249000,-207.37495472,0.00030623,7]
[422616611,1779160249000,-200.0,0.00030437,2]
[422616614,1779160249000,-200.0,0.00030438,2]
[422616616,1779160249000,-519.10654388,0.00030615,7]
[422616601,1779160249000,-15782.16341559,0.000302,2]
[422616653,1779160249000,-314.245263,0.000312,7]
[422616597,1779160249000,-200.0,0.00030137,2]
[422616649,1779160249000,-159.0,0.00031133,30]